bitfinex-derivatives/quotes_BTCF0:USTF0_20250718
["timestamp","ask_amount","ask_price","bid_price","bid_amount"]
[1752817664080,0.68181025,120450.0,120440.0,0.65015738]
[1752817664281,1.27765025,120450.0,120440.0,0.65015738]
[1752817666980,1.27765025,120450.0,120440.0,0.68428697]
[1752817669785,0.91685025,120450.0,120440.0,0.68428697]
[1752817669985,0.88640035,120450.0,120440.0,0.68428697]
[1752817670386,0.72049675,120450.0,120440.0,0.68428697]
[1752817670586,0.88640035,120450.0,120440.0,0.68428697]
[1752817671688,0.89880035,120450.0,120440.0,0.68428697]
[1752817672289,0.90753035,120450.0,120440.0,0.68428697]
[1752817672489,0.90721035,120450.0,120440.0,0.68428697]
[1752817672689,0.91151035,120450.0,120440.0,0.68428697]
[1752817673789,0.91151035,120450.0,120440.0,0.37721686]
[1752817673982,0.91151035,120450.0,120440.0,0.68428697]
[1752817675589,0.91151035,120450.0,120440.0,0.37721686]
[1752817675796,0.91151035,120450.0,120440.0,0.68428697]
[1752817680197,0.31599035,120450.0,120440.0,0.68428697]
[1752817680396,0.91127035,120450.0,120440.0,0.68428697]
[1752817681198,0.91127035,120450.0,120440.0,0.37721686]
[1752817681397,0.91127035,120450.0,120440.0,0.68428697]
[1752817681600,0.74536675,120450.0,120440.0,0.68428697]
[1752817681898,0.91127025,120450.0,120440.0,0.68428697]
[1752817684097,0.91127025,120450.0,120440.0,0.37721686]
[1752817684298,0.91127025,120450.0,120440.0,0.68428697]
[1752817685000,0.91127025,120450.0,120440.0,0.37721686]
[1752817685403,0.91127025,120450.0,120440.0,0.68428697]
[1752817685902,0.91127025,120450.0,120440.0,0.37721686]
[1752817686101,0.91127025,120450.0,120440.0,0.68428697]
[1752817686903,0.91127025,120450.0,120440.0,0.37721686]
[1752817687203,0.91127025,120450.0,120440.0,0.68428697]
[1752817691305,0.91127025,120450.0,120440.0,0.37721686]
[1752817691505,0.91127025,120450.0,120440.0,0.68428697]
[1752817692208,0.91127025,120450.0,120440.0,0.37721686]
[1752817692407,0.91127025,120450.0,120440.0,0.68428697]
[1752817693209,0.91127025,120450.0,120440.0,0.37721686]
[1752817693408,0.91127025,120450.0,120440.0,0.68428697]
[1752817693809,0.31599025,120450.0,120440.0,0.68428697]
[1752817694109,0.91067025,120450.0,120440.0,0.68428697]
[1752817694311,0.92392025,120450.0,120440.0,0.68428697]
[1752817695113,0.91067025,120450.0,120440.0,0.68428697]
[1752817695412,0.31599025,120450.0,120440.0,0.68428697]
[1752817695817,0.92657025,120450.0,120440.0,0.68428697]
[1752817696312,0.92388025,120450.0,120440.0,0.68428697]
[1752817696513,0.91838025,120450.0,120440.0,0.68428697]
[1752817696707,0.91063025,120450.0,120440.0,0.68428697]
[1752817697309,0.91838025,120450.0,120440.0,0.68428697]
[1752817697513,1.23364036,120450.0,120440.0,0.68428697]
[1752817699118,0.31599025,120450.0,120440.0,0.68428697]
[1752817699514,0.91047025,120450.0,120440.0,0.68428697]
[1752817700312,0.74456675,120450.0,120440.0,0.68428697]
[1752817701420,0.91047035,120450.0,120440.0,0.68428697]
[1752817702421,0.71909675,120450.0,120440.0,0.68428697]
[1752817704120,0.88500035,120450.0,120440.0,0.68428697]
[1752817704419,0.71909675,120450.0,120440.0,0.68428697]
[1752817705019,0.88500035,120450.0,120440.0,0.68428697]
[1752817705620,0.12465675,120450.0,120440.0,0.68428697]
[1752817706021,0.12465675,120450.0,120440.0,0.99135708]
[1752817706215,0.71889675,120450.0,120440.0,0.99135708]
[1752817706415,0.71885675,120450.0,120440.0,0.99135708]
[1752817706816,0.5942,120450.0,120440.0,0.99135708]
[1752817708317,0.5785247,120460.0,120450.0,0.2109136]
[1752817708517,1.1311715,120460.0,120450.0,0.91766382]
[1752817708716,0.3010145,120460.0,120450.0,1.27846382]
[1752817709024,0.5471928,120470.0,120460.0,0.3035099]
[1752817709217,0.61463,120470.0,120460.0,0.61058001]
[1752817709422,0.73900051,120470.0,120460.0,0.61058001]
[1752817710123,0.90487661,120470.0,120460.0,0.61058001]
[1752817711027,0.90487661,120470.0,120460.0,0.3035099]
[1752817711214,0.90487661,120470.0,120460.0,0.61058001]
[1752817711728,0.90487661,120470.0,120460.0,0.61558001]
[1752817712325,0.31075661,120470.0,120460.0,0.3085099]
[1752817712623,1.58545672,120470.0,120460.0,0.56340001]
[1752817713024,1.27838661,120470.0,120460.0,0.2563299]
[1752817713320,0.68442661,120470.0,120460.0,0.04268]
[1752817713527,1.55126778,120470.0,120460.0,0.006]
[1752817713726,1.27834661,120470.0,120460.0,0.1718899]
[1752817713922,1.55126778,120470.0,120460.0,0.1708899]
[1752817714325,0.95734778,120470.0,120460.0,0.1708899]
[1752817714523,1.27834661,120470.0,120460.0,0.2371099]
[1752817714720,0.68442661,120470.0,120460.0,0.2431099]
[1752817714920,1.27826661,120470.0,120460.0,0.2431099]
[1752817715118,0.91746661,120470.0,120460.0,0.2573299]
[1752817715522,1.27826661,120470.0,120460.0,0.2563299]
[1752817718629,1.27814661,120470.0,120460.0,0.2563299]
[1752817719130,0.68442661,120470.0,120460.0,0.09044]
[1752817719320,0.1798236,120450.0,120440.0,0.06623956]
[1752817719519,0.1680874,120440.0,120430.0,0.07122]
[1752817719721,0.80320857,120440.0,120430.0,0.07122]
[1752817719920,0.92824744,120440.0,120430.0,0.07122]
[1752817720526,0.92824744,120440.0,120430.0,0.07522]
[1752817720926,0.65532627,120440.0,120430.0,0.07522]
[1752817721127,0.65532627,120440.0,120430.0,0.2411512]
[1752817721327,0.65532627,120440.0,120430.0,0.07522]
[1752817722229,0.66376436,120440.0,120430.0,0.2411512]
[1752817722432,0.93668553,120440.0,120430.0,0.2411512]
[1752817722736,0.66376436,120440.0,120430.0,0.2471512]
[1752817722929,0.93668553,120440.0,120430.0,0.2471512]
[1752817723130,0.93668553,120440.0,120430.0,0.2613712]
[1752817723325,0.93668553,120440.0,120430.0,0.0086]
[1752817723531,1.53036553,120440.0,120430.0,0.0086]
[1752817723730,1.53036553,120440.0,120430.0,0.006]
[1752817724433,0.1659312,120430.0,120420.0,0.3343475]
[1752817724631,0.5267312,120430.0,120420.0,0.3343475]
[1752817724834,0.6516461,120430.0,120420.0,0.3343475]
[1752817725334,0.6516461,120430.0,120420.0,0.3563775]
[1752817725633,0.6516461,120430.0,120420.0,0.66244867]
[1752817725830,0.7185149,120430.0,120420.0,0.66244867]
[1752817726032,0.1249149,120430.0,120420.0,1.02324867]
[1752817726226,0.7184749,120430.0,120420.0,1.02324867]
[1752817727435,0.8844061,120430.0,120420.0,1.02324867]
[1752817728333,0.2488868,120440.0,120430.0,0.2804912]
[1752817728537,0.8424068,120440.0,120430.0,0.57411237]
[1752817728732,0.96643414,120440.0,120430.0,0.57411237]
[1752817729033,0.88347334,120440.0,120430.0,0.57411237]
[1752817729237,0.71754734,120440.0,120430.0,0.57411237]
[1752817729438,0.12402734,120440.0,120430.0,0.57411237]
[1752817729627,0.88346474,120440.0,120430.0,0.57411237]
[1752817729827,0.88346474,120440.0,120430.0,0.93491237]
[1752817730730,0.71754734,120440.0,120430.0,0.93691237]
[1752817730932,0.71750734,120440.0,120430.0,0.93691237]
[1752817731338,0.12402734,120440.0,120430.0,0.93491237]
[1752817731534,0.71750734,120440.0,120430.0,0.93891237]
[1752817732241,0.88342474,120440.0,120430.0,0.94091237]
[1752817732435,0.71750734,120440.0,120430.0,0.94091237]
[1752817732839,0.71750734,120440.0,120430.0,0.94191237]
[1752817733132,0.6096494,120460.0,120450.0,0.1659036]
[1752817733336,1.2030494,120460.0,120450.0,0.57616477]
[1752817733544,1.32682202,120460.0,120450.0,0.57616477]
[1752817734141,0.69194762,120460.0,120450.0,0.57616477]
[1752817734440,1.28530762,120460.0,120450.0,0.57916477]
[1752817734741,0.88303502,120460.0,120450.0,0.57916477]
[1752817735640,0.88303502,120460.0,120450.0,0.57616477]
[1752817735842,0.88303502,120460.0,120450.0,0.58016477]
[1752817736141,0.88303502,120460.0,120450.0,0.58216477]
[1752817738240,0.71713262,120460.0,120450.0,0.58216477]
[1752817738542,0.71713262,120460.0,120450.0,0.58316477]
[1752817738843,0.88302242,120460.0,120450.0,0.58316477]
[1752817739344,0.88302242,120460.0,120450.0,0.3102436]
[1752817739544,0.88302242,120460.0,120450.0,0.58316477]
[1752817739745,0.88302242,120460.0,120450.0,0.3102436]
[1752817739946,0.88302242,120460.0,120450.0,0.58316477]
[1752817740945,0.28966242,120460.0,120450.0,0.65007182]
[1752817741146,0.88282242,120460.0,120450.0,0.65007182]
[1752817741346,0.88282242,120460.0,120450.0,0.64907182]
[1752817741649,0.88282242,120460.0,120450.0,0.64807182]
[1752817742548,0.71689262,120460.0,120450.0,0.64807182]
[1752817743350,0.88278242,120460.0,120450.0,0.64807182]
[1752817744051,0.88278242,120460.0,120450.0,0.37515065]
[1752817744350,0.88278242,120460.0,120450.0,0.64807182]
[1752817744651,0.28966242,120460.0,120450.0,0.64807182]
[1752817744848,0.88270242,120460.0,120450.0,0.64807182]
[1752817745752,0.28966242,120460.0,120450.0,0.64807182]
[1752817745952,0.88266242,120460.0,120450.0,0.64807182]
[1752817747355,0.71677262,120460.0,120450.0,0.64807182]
[1752817752158,0.71657262,120460.0,120450.0,0.64807182]
[1752817752760,0.88246242,120460.0,120450.0,0.64807182]
[1752817755760,0.88246242,120460.0,120450.0,0.37515065]
[1752817755961,0.71649262,120460.0,120450.0,0.64807182]
[1752817756260,0.12377262,120460.0,120450.0,0.64807182]
[1752817756461,0.71649262,120460.0,120450.0,0.64807182]
[1752817759461,0.12377262,120460.0,120450.0,1.00887182]
[1752817759660,0.12377262,120460.0,120450.0,1.60147182]
[1752817759858,0.6096088,120480.0,120470.0,0.3009561]
[1752817760060,0.5681399,120480.0,120470.0,0.57387727]
[1752817760261,1.28494676,120480.0,120470.0,0.3009561]
[1752817760560,1.28494676,120480.0,120470.0,0.57387727]
[1752817761163,0.69238676,120480.0,120470.0,0.57387727]
[1752817761361,1.55786793,120480.0,120470.0,0.3029561]
[1752817761560,1.55786793,120480.0,120470.0,0.2503861]
[1752817761561,0.70064642,120480.0,120470.0,0.2503861]
[1752817761857,1.56608759,120480.0,120470.0,0.2362761]
[1752817762062,1.29316642,120480.0,120470.0,0.2362761]
[1752817762263,0.97356759,120480.0,120470.0,0.002]
[1752817762463,1.56608759,120480.0,120470.0,0.002]
[1752817762762,1.56608759,120480.0,120470.0,0.1658761]
[1752817762963,1.56608759,120480.0,120470.0,0.1688761]
[1752817763864,1.56608759,120480.0,120470.0,0.1678761]
[1752817765561,0.97356759,120480.0,120470.0,0.1678761]
[1752817765767,1.56596759,120480.0,120470.0,0.1678761]
[1752817767565,1.56596759,120480.0,120470.0,0.2362761]
[1752817767966,1.56596759,120480.0,120470.0,0.1678761]
[1752817768767,0.97356759,120480.0,120470.0,0.002]
[1752817768964,1.56588759,120480.0,120470.0,0.002]
[1752817769273,1.56588759,120480.0,120470.0,0.1678761]
[1752817772170,0.70064642,120480.0,120470.0,0.1678761]
[1752817772370,1.29292642,120480.0,120470.0,0.2362761]
[1752817772669,1.56584759,120480.0,120470.0,0.2362761]
[1752817777172,1.29292642,120480.0,120470.0,0.2362761]
[1752817777469,1.56584759,120480.0,120470.0,0.2362761]
[1752817777670,1.56568759,120480.0,120470.0,0.2362761]
[1752817778272,1.56568759,120480.0,120470.0,0.2503861]
[1752817778567,0.70064642,120480.0,120470.0,0.2503861]
[1752817778772,1.29272642,120480.0,120470.0,0.57587727]
[1752817779372,0.29838052,120480.0,120470.0,0.57587727]
[1752817779571,0.13250652,120480.0,120470.0,0.57587727]
[1752817779771,0.13250652,120480.0,120470.0,0.93667727]
[1752817779976,0.72454652,120480.0,120470.0,0.93667727]
[1752817780270,0.12424686,120480.0,120470.0,0.93667727]
[1752817780575,0.71628686,120480.0,120470.0,0.93667727]
[1752817781875,0.71628686,120480.0,120470.0,0.6637561]
[1752817782076,0.71628686,120480.0,120470.0,0.93667727]
[1752817782871,0.12424686,120480.0,120470.0,0.93667727]
[1752817783077,0.71620686,120480.0,120470.0,0.93667727]
[1752817783277,0.63315325,120480.0,120470.0,0.93667727]
[1752817783777,0.63315325,120480.0,120470.0,0.6637561]
[1752817783977,0.63315325,120480.0,120470.0,0.93667727]
[1752817784579,0.63315325,120480.0,120470.0,0.6637561]
[1752817784975,0.63315325,120480.0,120470.0,0.93667727]
[1752817786281,0.59192,120480.0,120470.0,0.93667727]
[1752817786978,0.61776413,120500.0,120490.0,0.2868185]
[1752817787279,1.33344509,120500.0,120490.0,0.3009285]
[1752817787579,0.74164509,120500.0,120490.0,0.57384967]
[1752817787779,1.33340509,120500.0,120490.0,0.57384967]
[1752817788278,1.33540509,120500.0,120490.0,0.57384967]
[1752817788676,1.24427566,120500.0,120490.0,0.57384967]
[1752817789181,1.24227566,120500.0,120490.0,0.57384967]
[1752817789782,1.24227566,120500.0,120490.0,0.3009285]
[1752817790081,1.24227566,120500.0,120490.0,0.57384967]
[1752817790983,0.65051566,120500.0,120490.0,0.57384967]
[1752817791182,1.24223566,120500.0,120490.0,0.57384967]
[1752817791683,1.07640096,120500.0,120490.0,0.57384967]
[1752817792182,0.04089137,120500.0,120490.0,0.93464967]
[1752817792380,0.54954178,120500.0,120490.0,0.93464967]
[1752817792583,0.67458423,120500.0,120490.0,0.93464967]
[1752817793882,0.12504245,120500.0,120490.0,0.93464967]
[1752817794782,0.71660245,120500.0,120490.0,0.93464967]
[1752817798286,0.12504245,120500.0,120490.0,0.93464967]
[1752817798487,0.71652245,120500.0,120490.0,0.93464967]
[1752817799989,0.59148,120500.0,120490.0,0.93464967]
[1752817800285,0.62236801,120520.0,120510.0,0.210011]
[1752817800491,1.21380801,120520.0,120510.0,0.56908217]
[1752817800689,1.3387567,120520.0,120510.0,0.56908217]
[1752817801487,1.3417567,120520.0,120510.0,0.56908217]
[1752817802191,1.3416367,120520.0,120510.0,0.56908217]
[1752817803694,1.3416367,120520.0,120510.0,0.296161]
[1752817803995,1.3416367,120520.0,120510.0,0.56908217]
[1752817804189,1.25031689,120520.0,120510.0,0.56908217]
[1752817805596,1.25859799,120520.0,120510.0,0.56908217]
[1752817806197,1.25031689,120520.0,120510.0,0.56908217]
[1752817807098,1.25031689,120520.0,120510.0,0.296161]
[1752817807396,1.25031689,120520.0,120510.0,0.56908217]
[1752817807897,0.65907689,120520.0,120510.0,0.56908217]
[1752817808098,1.25027689,120520.0,120510.0,0.56908217]
[1752817808597,1.25855385,120520.0,120510.0,0.56908217]
[1752817809502,1.25855385,120520.0,120510.0,0.296161]
[1752817809695,1.25855385,120520.0,120510.0,0.56908217]
[1752817810295,1.25027689,120520.0,120510.0,0.56908217]
[1752817810698,1.25015689,120520.0,120510.0,0.56908217]
[1752817811700,1.25015689,120520.0,120510.0,0.296161]
[1752817811903,1.25015689,120520.0,120510.0,0.56908217]
[1752817812302,1.24715689,120520.0,120510.0,0.56908217]
[1752817812504,1.24715689,120520.0,120510.0,0.57108217]
[1752817812801,1.24707689,120520.0,120510.0,0.57108217]
[1752817813298,0.72045869,120520.0,120510.0,0.57108217]
[1752817813500,0.12945869,120520.0,120510.0,0.57108217]
[1752817814000,0.72045869,120520.0,120510.0,0.57108217]
[1752817814697,0.72045869,120520.0,120510.0,0.298161]
[1752817814891,0.72045869,120520.0,120510.0,0.57108217]
[1752817816290,0.12945869,120520.0,120510.0,0.57108217]
[1752817816496,0.72037869,120520.0,120510.0,0.57108217]
[1752817818100,0.72037869,120520.0,120510.0,0.298161]
[1752817818303,0.72037869,120520.0,120510.0,0.57108217]
[1752817818702,0.12945869,120520.0,120510.0,0.57108217]
[1752817819000,0.0464816,120520.0,120510.0,0.57108217]
[1752817819202,0.6373216,120520.0,120510.0,0.93188217]
[1752817819703,0.8031289,120520.0,120510.0,0.57108217]
[1752817820002,0.6373216,120520.0,120510.0,0.57108217]
[1752817820901,0.6373216,120520.0,120510.0,0.298161]
[1752817821100,0.6373216,120520.0,120510.0,0.57108217]
[1752817823101,0.6378016,120520.0,120510.0,0.57108217]
[1752817823303,0.6403016,120520.0,120510.0,0.57108217]
[1752817826201,0.6403016,120520.0,120510.0,0.93188217]
[1752817826405,0.6403016,120520.0,120510.0,0.57108217]
[1752817826907,0.6403016,120520.0,120510.0,0.9115603]
[1752817827102,0.6403016,120520.0,120510.0,1.2723603]
[1752817830006,0.5573325,120520.0,120510.0,1.2723603]
[1752817830208,0.71876002,120520.0,120510.0,1.2723603]
[1752817830707,0.12824002,120520.0,120510.0,1.2723603]
[1752817830901,0.71876002,120520.0,120510.0,1.2723603]
[1752817831706,0.71876002,120520.0,120510.0,0.658961]
[1752817831907,0.71876002,120520.0,120510.0,1.2723603]
[1752817833008,0.71876002,120520.0,120510.0,0.9115603]
[1752817833306,0.71876002,120520.0,120510.0,1.2723603]
[1752817834610,0.71876002,120520.0,120510.0,0.658961]
[1752817834811,0.71876002,120520.0,120510.0,1.2723603]
[1752817835712,0.71876002,120520.0,120510.0,0.658961]
[1752817836011,0.71876002,120520.0,120510.0,1.2723603]
[1752817838114,0.71876002,120520.0,120510.0,0.9115603]
[1752817841714,0.71876002,120520.0,120510.0,0.298161]
[1752817841913,0.71876002,120520.0,120510.0,0.9115603]
[1752817842315,0.12824002,120520.0,120510.0,0.9115603]
[1752817842516,0.71848002,120520.0,120510.0,0.9115603]
[1752817843910,1.55356687,120520.0,120510.0,0.60486065]
[1752817845215,1.55356687,120520.0,120510.0,0.298161]
[1752817845417,1.55356687,120520.0,120510.0,0.60486065]
[1752817847621,1.55356687,120520.0,120510.0,0.298161]
[1752817847918,1.55356687,120520.0,120510.0,0.60486065]
[1752817848219,1.08106002,120520.0,120510.0,0.60486065]
[1752817848518,1.55356687,120520.0,120510.0,0.60486065]
[1752817848920,1.38775967,120520.0,120510.0,0.60486065]
[1752817850520,1.38775967,120520.0,120510.0,0.298161]
[1752817850818,1.38775967,120520.0,120510.0,0.60486065]
[1752817851314,0.79759967,120520.0,120510.0,0.60486065]
[1752817851514,0.13010002,120520.0,120510.0,0.60486065]
[1752817851719,0.71972002,120520.0,120510.0,0.60486065]
[1752817851919,0.71816002,120520.0,120510.0,0.60486065]
[1752817852411,0.12824002,120520.0,120510.0,0.60486065]
[1752817852717,0.71812002,120520.0,120510.0,0.9115603]
[1752817854320,0.71812002,120520.0,120510.0,1.2723603]
[1752817855524,0.12824002,120520.0,120510.0,1.2723603]
[1752817855724,0.71800002,120520.0,120510.0,0.658961]
[1752817855918,0.71800002,120520.0,120510.0,0.9115603]
[1752817857224,0.71800002,120520.0,120510.0,0.298161]
[1752817857429,1.02469967,120520.0,120510.0,0.298161]
[1752817857931,1.02465967,120520.0,120510.0,0.60486065]
[1752817858330,0.71796002,120520.0,120510.0,0.60486065]
[1752817858729,1.02465967,120520.0,120510.0,0.60486065]
[1752817859030,1.55126687,120520.0,120510.0,0.298161]
[1752817859329,1.55277687,120520.0,120510.0,0.298161]
[1752817859529,1.55306687,120520.0,120510.0,0.60486065]
[1752817860432,1.55306687,120520.0,120510.0,0.298161]
[1752817860625,1.55306687,120520.0,120510.0,0.60486065]
[1752817860828,1.38725967,120520.0,120510.0,0.60486065]
[1752817861126,1.08056002,120520.0,120510.0,0.60486065]
[1752817861326,1.38725967,120520.0,120510.0,0.60486065]
[1752817861527,1.38696967,120520.0,120510.0,0.298161]
[1752817861830,1.38688967,120520.0,120510.0,0.60486065]
[1752817862030,1.38688967,120520.0,120510.0,0.298161]
[1752817862332,1.08019002,120520.0,120510.0,0.60486065]
[1752817862632,1.38537967,120520.0,120510.0,0.60486065]
[1752817865032,1.55118687,120520.0,120510.0,0.60486065]
[1752817865935,1.38537967,120520.0,120510.0,0.60486065]
[1752817868537,1.55090687,120520.0,120510.0,0.60486065]
[1752817868835,1.38509967,120520.0,120510.0,0.60486065]
[1752817869130,1.55086687,120520.0,120510.0,0.298161]
[1752817869336,1.55086687,120520.0,120510.0,0.60486065]
[1752817869531,1.07836002,120520.0,120510.0,0.60486065]
[1752817869834,1.55086687,120520.0,120510.0,0.60486065]
[1752817870135,1.38505967,120520.0,120510.0,0.60486065]
[1752817870337,1.38505967,120520.0,120510.0,0.298161]
[1752817870540,1.38505967,120520.0,120510.0,0.60486065]
[1752817872038,1.07836002,120520.0,120510.0,0.60486065]
[1752817872337,1.07836002,120520.0,120510.0,0.298161]
[1752817872537,0.71756002,120520.0,120510.0,0.60486065]
[1752817873938,0.12824002,120520.0,120510.0,0.60486065]
[1752817874138,1.02413967,120520.0,120510.0,0.60486065]
[1752817875339,0.71744002,120520.0,120510.0,0.60486065]
[1752817875540,1.02413967,120520.0,120510.0,0.60486065]
[1752817876041,1.18994687,120520.0,120510.0,0.60486065]
[1752817877241,1.02413967,120520.0,120510.0,0.60486065]
[1752817877540,1.18994687,120520.0,120510.0,0.60486065]
[1752817877941,1.02413967,120520.0,120510.0,0.60486065]
[1752817878131,1.18994687,120520.0,120510.0,0.60486065]
[1752817878441,1.19072687,120520.0,120510.0,0.60486065]
[1752817879142,0.96232687,120520.0,120510.0,0.60486065]
[1752817879441,1.55128687,120520.0,120510.0,0.60486065]
[1752817879742,1.55128687,120520.0,120510.0,0.298161]
[1752817880041,1.55128687,120520.0,120510.0,0.60486065]
[1752817882548,1.24458722,120520.0,120510.0,0.60486065]
[1752817882846,1.55128687,120520.0,120510.0,0.60486065]
[1752817883846,1.55128687,120520.0,120510.0,0.298161]
[1752817884045,1.55128687,120520.0,120510.0,0.60486065]
[1752817884245,1.55050687,120520.0,120510.0,0.60486065]
[1752817884647,1.38469967,120520.0,120510.0,0.60486065]
[1752817884947,1.07800002,120520.0,120510.0,0.60486065]
[1752817885149,0.71720002,120520.0,120510.0,0.60486065]
[1752817885345,0.71704002,120520.0,120510.0,0.60486065]
[1752817885647,0.71704002,120520.0,120510.0,0.298161]
[1752817885847,0.88284722,120520.0,120510.0,0.60486065]
[1752817886048,0.71704002,120520.0,120510.0,0.60486065]
[1752817886649,0.71692002,120520.0,120510.0,0.60486065]
[1752817886946,0.71692002,120520.0,120510.0,0.298161]
[1752817887148,0.71692002,120520.0,120510.0,0.60486065]
[1752817887348,0.88272722,120520.0,120510.0,0.60486065]
[1752817887950,0.88272722,120520.0,120510.0,0.298161]
[1752817888352,0.88272722,120520.0,120510.0,0.60486065]
[1752817892452,0.29404722,120520.0,120510.0,0.298161]
[1752817892652,0.88260722,120520.0,120510.0,0.60486065]
[1752817892854,1.18930687,120520.0,120510.0,0.60486065]
[1752817893552,1.02349967,120520.0,120510.0,0.60486065]
[1752817893853,0.71680002,120520.0,120510.0,0.60486065]
[1752817894051,0.88260722,120520.0,120510.0,0.60486065]
[1752817894353,0.71672002,120520.0,120510.0,0.60486065]
[1752817898252,0.71672002,120520.0,120510.0,0.298161]
[1752817898458,0.71672002,120520.0,120510.0,0.60486065]
[1752817898855,0.88252722,120520.0,120510.0,0.60486065]
[1752817899157,0.29404722,120520.0,120510.0,0.298161]
[1752817899358,1.02317967,120520.0,120510.0,0.298161]
[1752817899558,1.02317967,120520.0,120510.0,0.60486065]
[1752817899852,0.43493967,120520.0,120510.0,0.60486065]
[1752817900059,1.02313967,120520.0,120510.0,0.60486065]
[1752817900359,1.18894687,120520.0,120510.0,0.60486065]
[1752817900554,0.88224722,120520.0,120510.0,0.60486065]
[1752817900856,1.02313967,120520.0,120510.0,0.60486065]
[1752817901058,1.18894687,120520.0,120510.0,0.60486065]
[1752817901560,1.02313967,120520.0,120510.0,0.60486065]
[1752817902459,0.12824002,120520.0,120510.0,0.60486065]
[1752817902954,0.71632002,120520.0,120510.0,0.9115603]
[1752817903461,0.71632002,120520.0,120510.0,0.60486065]
[1752817904962,0.12824002,120520.0,120510.0,0.60486065]
[1752817905162,0.71624002,120520.0,120510.0,0.60486065]
[1752817907567,0.71616002,120520.0,120510.0,0.9115603]
[1752817907964,0.71616002,120520.0,120510.0,0.298161]
[1752817908160,0.71616002,120520.0,120510.0,0.9115603]
[1752817908361,0.71616002,120520.0,120510.0,0.60486065]
[1752817908562,0.71616002,120520.0,120510.0,0.298161]
[1752817908866,0.71616002,120520.0,120510.0,0.60486065]
[1752817909267,0.71616002,120520.0,120510.0,0.298161]
[1752817909467,0.71616002,120520.0,120510.0,0.60486065]
[1752817909761,0.71616002,120520.0,120510.0,0.9115603]
[1752817910068,0.12526002,120520.0,120510.0,0.9115603]
[1752817910258,0.71310002,120520.0,120510.0,1.2723603]
[1752817910457,0.3608,120540.0,120530.0,0.05135]
[1752817910657,1.50832,120560.0,120550.0,0.2514559]
[1752817910958,2.10601551,120560.0,120550.0,0.60773555]
[1752817911159,2.69381551,120560.0,120550.0,0.60773555]
[1752817911361,2.70230034,120560.0,120550.0,0.60773555]
[1752817912368,2.70230034,120560.0,120550.0,0.60973555]
[1752817912866,2.39560069,120560.0,120550.0,0.60973555]
[1752817913066,2.70230034,120560.0,120550.0,0.60973555]
[1752817917570,2.34150034,120560.0,120550.0,0.60973555]
[1752817917770,2.70230034,120560.0,120550.0,0.60973555]
[1752817918372,2.22984859,120560.0,120550.0,0.60973555]
[1752817918573,2.70230034,120560.0,120550.0,0.60973555]
[1752817918874,2.70230034,120560.0,120550.0,0.67469971]
[1752817920968,2.53654824,120560.0,120550.0,0.67469971]
[1752817921174,0.83321245,120590.0,120580.0,0.1657247]
[1752817921472,1.55333135,120590.0,120580.0,0.57843435]
[1752817921668,0.80025855,120590.0,120580.0,0.60084435]
[1752817921874,1.38757855,120590.0,120580.0,0.60769435]
[1752817922271,0.4935589,120590.0,120580.0,0.60769435]
[1752817922472,0.4935589,120590.0,120580.0,0.2496447]
[1752817922473,1.55328945,120590.0,120580.0,0.2496447]
[1752817922673,1.55324945,120590.0,120580.0,0.2496447]
[1752817922873,1.55324945,120590.0,120580.0,0.2358247]
[1752817923068,0.1657247,120580.0,120570.0,0.2429208]
[1752817923276,1.42050435,120580.0,120570.0,0.2071608]
[1752817923477,1.5455421,120580.0,120570.0,0.2071608]
[1752817923774,1.5455421,120580.0,120570.0,0.2772608]
[1752817924471,1.5509521,120580.0,120570.0,0.1657284]
[1752817925568,1.07852775,120580.0,120560.0,0.1115379]
[1752817925877,1.7388977,120570.0,120560.0,0.3187171]
[1752817926170,1.86321194,120570.0,120560.0,0.2071792]
[1752817927473,1.86321194,120570.0,120560.0,0.2081792]
[1752817927778,1.27601194,120570.0,120560.0,0.2081792]
[1752817927981,1.86309194,120570.0,120560.0,0.2081792]
[1752817929086,1.24969264,120570.0,120560.0,0.1667413]
[1752817929386,1.24969264,120570.0,120560.0,0.2368413]
[1752817929583,1.55639229,120570.0,120560.0,0.2506613]
[1752817929984,1.86309194,120570.0,120560.0,0.0711]
[1752817930184,1.86309194,120570.0,120560.0,0.001]
[1752817931190,0.1775121,120560.0,120550.0,0.06496416]
[1752817931488,0.1775259,120550.0,120540.0,0.3325775]
[1752817931684,0.84502555,120550.0,120540.0,0.3325775]
[1752817931886,0.96907417,120550.0,120540.0,0.39812986]
[1752817932080,0.96907417,120550.0,120540.0,0.44262986]
[1752817932284,0.96907417,120550.0,120540.0,0.75617951]
[1752817932584,1.55603417,120550.0,120540.0,0.75717951]
[1752817932789,0.96907417,120550.0,120540.0,0.45047986]
[1752817933090,1.56411139,120550.0,120540.0,0.45047986]
[1752817933589,1.56411139,120550.0,120540.0,0.75717951]
[1752817933791,1.55959139,120550.0,120540.0,0.75817951]
[1752817934091,0.97267139,120550.0,120540.0,0.75817951]
[1752817934584,0.12769862,120550.0,120540.0,1.42567916]
[1752817934789,0.12769862,120550.0,120540.0,1.06387916]
[1752817934790,0.71461862,120550.0,120540.0,1.06387916]
[1752817935184,0.88034452,120550.0,120540.0,1.06387916]
[1752817935892,0.29346452,120550.0,120540.0,1.06387916]
[1752817936189,0.88034452,120550.0,120540.0,0.45047986]
[1752817936390,0.29346452,120550.0,120540.0,1.06387916]
[1752817936689,0.88034452,120550.0,120540.0,1.06387916]
[1752817936888,0.88393452,120550.0,120540.0,1.06387916]
[1752817937089,0.88393452,120550.0,120540.0,0.72295968]
[1752817937791,0.29705452,120550.0,120540.0,0.72295968]
[1752817937992,0.88389452,120550.0,120540.0,0.72295968]
[1752817938990,0.88389452,120550.0,120540.0,0.45047986]
[1752817939291,0.88389452,120550.0,120540.0,0.72295968]
[1752817939691,0.13128862,120550.0,120540.0,0.72295968]
[1752817940091,0.71804862,120550.0,120540.0,0.72295968]
[1752817940994,0.71804862,120550.0,120540.0,0.45047986]
[1752817941487,0.29705452,120550.0,120540.0,0.72295968]
[1752817941693,0.88377452,120550.0,120540.0,0.72295968]
[1752817941895,0.88377452,120550.0,120540.0,0.45047986]
[1752817942794,0.71800862,120550.0,120540.0,0.45047986]
[1752817943690,0.13128862,120550.0,120540.0,0.45047986]
[1752817943896,0.71796862,120550.0,120540.0,0.45047986]
[1752817944594,0.71796862,120550.0,120540.0,0.72295968]
[1752817944796,0.71796862,120550.0,120540.0,0.45047986]
[1752817944995,0.13128862,120550.0,120540.0,0.45047986]
[1752817945195,0.71792862,120550.0,120540.0,0.45047986]
[1752817945594,0.88369432,120550.0,120540.0,0.45047986]
[1752817946399,0.71792862,120550.0,120540.0,0.72295968]
[1752817948401,0.88369442,120550.0,120540.0,0.45047986]
[1752817948601,0.71792862,120550.0,120540.0,0.72295968]
[1752817949005,0.13128862,120550.0,120540.0,0.72295968]
[1752817949404,0.71784862,120550.0,120540.0,0.72295968]
[1752817949703,0.88361442,120550.0,120540.0,0.72295968]
[1752817950406,0.88361442,120550.0,120540.0,0.45047986]
[1752817950703,0.88361442,120550.0,120540.0,0.72295968]
[1752817952403,0.29705442,120550.0,120540.0,0.72295968]
[1752817952599,0.88353442,120550.0,120540.0,0.72295968]